Cogmind - Beta 17 @@@ ROGUE MODE // 2026.07.21 @ 17:33:43 Player: abnormal202 Result: Self-destructed Performance ------------- Evolutions (2) 1000 Regions Visited (3) 600 Robots Destroyed (18) 90 Value Destroyed (510) 510 Prototype IDs (0) 0 Alien Tech Used (0) 0 Bonus (0) 0 TOTAL SCORE: 2200 Bonus ------- None Cogmind --------- Core Integrity 468/550 Matter 56/300 Energy 100/100 System Corruption 0% Temperature Cool (0) Movement Core (200) Ox3 Location -8/Materials Parts ------- > --- POWER (2) -------- (None) > --- PROPULSION (4) --- (None) > --- UTILITY (3) ------ Seismic Detector > --- WEAPON (2) ------- High-powered Shotgun Subdweller Shrapnel Launcher > --- INVENTORY (5) ---- High-capacity Storage Unit Seismic Detector Makeshift Light Armor Plating Subdweller Laser Flamer Peak State ------------ > --- POWER ------------ Ion Engine > --- PROPULSION ------- Light Treads Light Treads > --- UTILITY ---------- Small Storage Unit Seismic Detector > --- WEAPON ----------- Battle Cannon Flamer > --- INVENTORY -------- Light Ion Engine High-capacity Storage Unit Improved Terrain Scanner Seismic Detector Makeshift Light Armor Plating Subdweller Laser Assault Rifle Subdweller Shrapnel Launcher [Rating: 10] Favorites ----------- Power Ion Engine Engine Ion Engine Propulsion Light Treads Treads Light Treads Utility Small Storage Unit Device Seismic Detector Storage Small Storage Unit Weapon Assault Rifle Energy Gun Subdweller Laser Ballistic Gun Assault Rifle Ballistic Cannon Battle Cannon Launcher Subdweller Shrapnel Launcher Special Weapon Flamer Build | -11 -10 -10 -8 ------- Run | Yrd Mat Sub Mat Slots Evolved 4 | . . . 4 Power 1 | . . . 1 Propulsion 2 | . . . 2 Utility 1 | . . . 1 Weapon . | . . . . Parts Attached 14 | 7 1 4 2 Power 1 | 1 . . . Engine 1 | 1 . . . Core . | . . . . Reactor . | . . . . Propulsion 2 | 2 . . . Treads 2 | 2 . . . Leg . | . . . . Wheel . | . . . . Hover . | . . . . Flight . | . . . . Utility 3 | 2 1 . . Device 1 | 1 . . . Storage 2 | 1 1 . . Processor . | . . . . Hackware . | . . . . Protection . | . . . . Artifact . | . . . . Weapon 8 | 2 . 4 2 Energy Gun 1 | . . 1 . Energy Cannon . | . . . . Ballistic Gun 4 | 2 . 1 1 Ballistic Cannon 1 | . . 1 . Launcher 1 | . . . 1 Special Weapon 1 | . . 1 . Impact Weapon . | . . . . Slashing Weapon . | . . . . Piercing Weapon . | . . . . Special Melee Weapon . | . . . . Unidentified Prototypes . | . . . . Parts Lost 6 | . . 2 4 Power 1 | . . . 1 Propulsion 2 | . . 1 1 Utility 1 | . . . 1 Weapon 2 | . . 1 1 Highest Loss Streak 4 | . . 1 4 To Critical Strikes . | . . . . Average Backups 7 | 4 7 8 7 Power 1 | 1 2 1 . Propulsion . | . . . . Utility 3 | 1 4 4 3 Weapon 1 | 1 1 2 2 Tool/Special . | . . . . Unused Backups 10 | . 1 4 5 Power 2 | . . 1 1 Propulsion . | . . . . Utility 6 | . 1 2 3 Weapon 2 | . . 1 1 Tool/Special . | . . . . Average Slot Usage (%) 89 | . 100 99 50 Engine 12 | . 14 14 7 Treads 23 | . 28 28 7 Device 12 | . 14 14 9 Storage 12 | . 14 14 7 Ballistic Gun 17 | . 28 13 9 Ballistic Cannon 6 | . . 10 7 Peak Build Rating 10 | 7 8 10 10 Average Rating 8 | 5 7 9 9 On Entrance 6 | . 7 8 9 Avg Prop Armor Cover (%) . | . . . . Naked Turns . | . . . . Heaviest Build 18 | 14 14 18 18 Greatest Support 40 | 40 40 40 20 Greatest Overweight (x) 3 | 3 . . 3 Average Overweight (x) . | . . . . Largest Inventory Capacity 20 | 8 20 8 8 Average Capacity 7 | 7 8 8 7 Most Carried 8 | 6 8 8 8 Average Carried 7 | 4 7 7 7 Final Capacity 8 | 8 8 8 5 Final Carried 8 | 6 8 8 5 Class Distribution -------------------- 100% | Mutant Dominant Class ---------------- Mutant | -10/Materials Mutant | -10/Subcaves Mutant | -8/Materials Resources | -11 -10 -10 -8 ----------- Run | Yrd Mat Sub Mat Matter Collected 530 | 386 . 123 21 Remotely . | . . . . Salvage Created 474 | 247 . 118 109 Parts 29 | 23 . 4 2 Haulers Intercepted . | . . . . Recyclers Shooed . | . . . . Parts Field Recycled . | . . . . Retrieved Matter . | . . . . Parts Self-Destructed 3 | . . 3 . Prevented . | . . . . Parts Restored . | . . . . Kills | -11 -10 -10 -8 ------- Run | Yrd Mat Sub Mat Combat Hostiles Destroyed 9 | . . 4 5 Guns 3 | . . 2 1 Cannons 2 | . . 2 . AOE 4 | . . . 4 Classes Destroyed 4 | 2 . 1 1 Tunneler 8 | 8 . . . Recycler 1 | 1 . . . Grunt 5 | . . . 5 Subdweller 4 | . . 4 . Best Kill Streak 5 | 4 . 2 5 Combat Bots Only 5 | . . 2 5 Max Kills in Single Turn 2 | 1 . 1 2 Gunslinging . | . . . . Exploded 2 | . . . 2 Melee . | . . . . Uniques/NPCs Destroyed . | . . . . Combat | -11 -10 -10 -8 -------- Run | Yrd Mat Sub Mat Hostile Shots Fired 64 | . . 30 34 Missed 17 | . . 7 10 Hits 47 | . . 23 24 Projectile 47 | . . 23 24 AOE 1 | . . 1 . Critical Strikes 3 | . . 1 2 Damage Taken 1014 | . . 556 458 Core 165 | . . 83 82 Absorbed by Shields . | . . . . Core Remaining (%) 83 | 100 . 66 . Volleys Fired 60 | 29 . 12 19 Largest 2 | 2 . 2 2 Hottest 133 | 40 . 133 65 Shots Fired 117 | 58 . 23 36 Gun 84 | 58 . 7 19 Cannon 22 | . . 12 10 Launcher 7 | . . . 7 Special 4 | . . 4 . Kinetic 113 | 58 . 19 36 Thermal 4 | . . 4 . Explosive . | . . . . Electromagnetic . | . . . . Robot Hit Streak 9 | 5 . 7 9 Robot Miss Streak 6 | 5 . 1 6 Penetration Max . | . . . . Secondary Targets . | . . . . Shots Hit Robots 52 | 30 . 13 9 Core Hits 33 | 14 . 8 11 Critical Kills . | . . . . Critical Parts Destroyed . | . . . . Critical Strikes 2 | . . 2 . Blast 2 | . . 2 . Melee Attacks . | . . . . Impact . | . . . . Slashing . | . . . . Piercing . | . . . . Sneak Attacks . | . . . . Combat Hostiles . | . . . . Follow-up Attacks . | . . . . Damage Inflicted 1315 | 304 . 246 765 Guns 602 | 304 . 86 212 Cannons 155 | . . 127 28 Explosions 525 | . . . 525 Melee . | . . . . Ramming . | . . . . Kinetic 1282 | 304 . 213 765 Thermal 33 | . . 33 . Explosive . | . . . . Electromagnetic . | . . . . Impact . | . . . . Slashing . | . . . . Piercing . | . . . . Highest Corruption . | . . . . Average Corruption . | . . . . Corruption Purged . | . . . . Corruption Blocked . | . . . . Overload Shots . | . . . . Overflow Damage 1 | . . . 1 Projectiles . | . . . . Explosions 1 | . . . 1 Melee . | . . . . Knockbacks 3 | . . 2 1 Impact . | . . . . Kinetic 3 | . . 2 1 Secondary . | . . . . Self-Inflicted Damage 60 | . . . 60 Shots 2 | . . . 2 Rammed . | . . . . Targets Rammed . | . . . . Kicked . | . . . . Crushed . | . . . . Highest Temperature 37 | . . 2 37 Average Temperature 13 | . . 2 16 Received Heat Transfer 369 | . . 117 252 Siege Activations . | . . . . Martial Activations . | . . . . Shielding Activations . | . . . . Robots Disrupted . | . . . . Combat Hostiles . | . . . . Robots Corrupted . | . . . . Combat Hostiles . | . . . . Parts Fried . | . . . . Impact Corruptions . | . . . . Robots Melted . | . . . . Combat Hostiles . | . . . . Parts Melted 1 | . . 1 . Heat Transferred 240 | . . 240 . Parts Sabotaged . | . . . . Parts Stolen . | . . . . Parts Stripped . | . . . . Power Chain Reactions . | . . . . Alert | -11 -10 -10 -8 ------- Run | Yrd Mat Sub Mat Maximum Alert Level 1 | . . . 1 Low Security (%) 99 | 100 100 . 97 Level 1 . | . . . 2 Level 2 . | . . . . Level 3 . | . . . . Level 4 . | . . . . Level 5 . | . . . . High Security . | . . . . Max Security . | . . . . Peak Influence 206 | 10 5 . 206 Initial . | . . . . Average 4 | 1 . . 17 Influence Increases 290 | 45 7 . 238 Destroy 0b10 Robot/C 100 | . . . 100 Destroy 0b10 Robot/NC 45 | 45 . . . Destroy Leader 20 | . . . 20 Successful Hack 7 | . 7 . . Disable Machine 75 | . . . 75 Destroy Structure 43 | . . . 43 Influence Decreases 84 | 45 7 . 32 Time Decay 72 | 45 7 . 20 Lost Part 12 | . . . 12 Squads Dispatched 1 | . . . 1 Investigation . | . . . . Extermination . | . . . . Reinforcement 1 | . . . 1 Assault . | . . . . Garrison . | . . . . Intercept . | . . . . Searches Triggered . | . . . . Construction Impeded . | . . . . Haulers Reinforced . | . . . . Active Scanning Responses . | . . . . Cargo Convoy Interrupts . | . . . . Stealth | -11 -10 -10 -8 --------- Run | Yrd Mat Sub Mat Distress Signals . | . . . . Communications Jammed . | . . . . Distress Signals . | . . . . Times Spotted 14 | . . 7 7 Peak Tracking Total 3 | . . 2 3 Tactical Retreats . | . . . . Traps | -11 -10 -10 -8 ------- Run | Yrd Mat Sub Mat Traps Triggered . | . . . . Indirectly . | . . . . Trap Hack Attempts . | . . . . Triggered . | . . . . Disarmed . | . . . . Reprogrammed . | . . . . Reused . | . . . . Traps Extracted . | . . . . Installed . | . . . . Triggered . | . . . . Machines | -11 -10 -10 -8 ---------- Run | Yrd Mat Sub Mat Machines Disabled 5 | . . . 5 Max in Single Turn 2 | . . . 2 Machines Repaired . | . . . . Machines Dismantled . | . . . . Machines Sabotaged . | . . . . Overloaded Fab Kills . | . . . . Hacking | -11 -10 -10 -8 --------- Run | Yrd Mat Sub Mat Machines Accessed 2 | . 2 . . Terminals 2 | . 2 . . Fabricators . | . . . . Repair Stations . | . . . . Recycling Units . | . . . . Scanalyzers . | . . . . Garrison Access . | . . . . Total Hacks 3 | . 3 . . Successful 2 | . 2 . . Failed 1 | . 1 . . Catastrophic . | . . . . Database Lockouts . | . . . . Manual 1 | . 1 . . Terminals 3 | . 3 . . Fabricators . | . . . . Repair Stations . | . . . . Recycling Units . | . . . . Scanalyzers . | . . . . Garrison Access . | . . . . Terminal Hacks 2 | . 2 . . Record 1 | . 1 . . Transport Status 1 | . 1 . . Fabricator Hacks . | . . . . Repair Station Hacks . | . . . . Recycling Unit Hacks . | . . . . Scanalyzer . | . . . . Garrison Access Hacks . | . . . . Unauthorized Hacks . | . . . . Terminals . | . . . . Fabricators . | . . . . Repair Stations . | . . . . Recycling Units . | . . . . Scanalyzers . | . . . . Garrison Access . | . . . . Data Cores Recovered . | . . . . Used . | . . . . Hacking Detections 2 | . 2 . . Full Trace Events . | . . . . Feedback Events . | . . . . Feedback Blocked . | . . . . Robot Schematics Acquired . | . . . . Robots Built . | . . . . Authchips . | . . . . Time . | . . . . Total Robot Build Rating . | . . . . Part Schematics Acquired . | . . . . Parts Built . | . . . . Authchips . | . . . . Time . | . . . . Total Part Build Rating . | . . . . Part Studies Acquired . | . . . . Parts Repaired . | . . . . Time . | . . . . Parts Recycled . | . . . . Recycled Matter . | . . . . Retrieved Matter . | . . . . Retrieved Components . | . . . . Parts Scanalyzed . | . . . . Part Schematics Acquired . | . . . . Parts Damaged . | . . . . Bothacking | -11 -10 -10 -8 ------------ Run | Yrd Mat Sub Mat Used RIF Installer . | . . . . Robots Hacked . | . . . . Non-combat . | . . . . Combat . | . . . . Robot Hacks Applied . | . . . . Relay Couplers Released . | . . . . Fabnet Peak Effective % . | . . . . Robots Rewired . | . . . . Allies Hacked . | . . . . Hacks Repelled . | . . . . Allies | -11 -10 -10 -8 -------- Run | Yrd Mat Sub Mat Total Allies . | . . . . Largest Group . | . . . . Highest-Rated Group . | . . . . Highest-Rated Ally . | . . . . Total Orders . | . . . . Ally Attacks . | . . . . Total Damage . | . . . . Kills . | . . . . Allies Corrupted . | . . . . Allies Melted . | . . . . Intel | -11 -10 -10 -8 ------- Run | Yrd Mat Sub Mat Active Infowar (turns) 1226 | 68 403 530 225 Seismic 1226 | 68 403 530 225 Robot Analysis Total . | . . . . Derelict Logs Recovered 1 | . . 1 . Drone Launches . | . . . . Drone Recoveries . | . . . . Exploration | -11 -10 -10 -8 ------------- Run | Yrd Mat Sub Mat Turns Passed 1491 | 333 403 530 225 Spaces Moved 702 | 158 198 290 56 Core 29 | 25 . . 4 Treads 673 | 133 198 290 52 Legs . | . . . . Wheels . | . . . . Hover . | . . . . Flight . | . . . . Fastest Speed 50 | 50 160 160 160 Average Speed 157 | 148 160 160 162 Slowest Speed 200 | 200 160 160 200 Overloaded Moves . | . . . . Propulsion Burnouts . | . . . . Robots Hopped . | . . . . Potential Cave-ins . | . . . . Cave-ins Triggered . | . . . . Exploration Rate (%) 14 | 6 20 25 7 Regions Visited 3 Branch Regions 1 Pre-discovered Areas . | . . . . Known Exits Taken . | . . . . Unknown Exits Taken 3 | 1 1 1 . Scrap Searched 3 | . . 3 . Spaces Dug . | . . . . Terrain Destroyed 67 | . . . 67 Melee . | . . . . Projectile 2 | . . . 2 AOE 65 | . . . 65 Terrain Rammed . | . . . . Walls Destroyed . | . . . . Machines Disabled . | . . . . Actions | -11 -10 -10 -8 --------- Run | Yrd Mat Sub Mat Total 971 | 204 284 330 153 Wait 170 | . 82 13 75 Move 699 | 157 197 289 56 Hop . | . . . . Pick Up 19 | 11 2 6 . Fast Attach 3 | 2 . 1 . Attach 6 | 5 . . 1 Detach . | . . . . Swap 6 | . 2 3 1 Drop 8 | . 1 6 1 Fire 60 | 29 . 12 19 Melee . | . . . . Ram . | . . . . Kick . | . . . . Crush . | . . . . Escape Stasis . | . . . . Rewire . | . . . . Trap . | . . . . Miscellaneous . | . . . . Route ------- -11/Scrapyard -10/Materials -10/Subcaves -8/Materials (discovered 2 exits: Fac x2) History --------- Turn | Location | Event 5 | -11/Scrapyard | Discovered new exit (range 13) 334 | -11/Scrapyard | Entered Materials 335 | -10/Materials | Build established: Mutant 556 | -10/Materials | Discovered new exit (range 6) 737 | -10/Materials | Entered Subcaves 754 | -10/Subcaves | Shifting Twisted Machinery released Sub. Laser 795 | -10/Subcaves | Disturbed a concealed Subdweller 969 | -10/Subcaves | Ambushed by Subdwellers from Twisted Machinery 1045 | -10/Subcaves | Shifting Twisted Machinery released Mak. Shrapnel Gun 1046 | -10/Subcaves | Shifting Twisted Machinery released Flamer 1075 | -10/Subcaves | Learned 4 Materials zone layouts 1131 | -10/Subcaves | A swath of the cavern ceiling suddenly collapsed 1209 | -10/Subcaves | Discovered new exit (range 14) 1267 | -10/Subcaves | Entered Materials 1267 | -8/Materials | Evolved 4 slots: Power x1, Propulsion x2, Utility x1 1268 | -8/Materials | Identified exit to Factory 1492 | -8/Materials | Self-destructed Last Messages --------------- 01460_ G-47 Trooper destroyed. 01460_ Atomic Centrifuge disabled. 01466_ Critical hit (Burn: +37). 01469_ G-50 Soldier destroyed. 01469_ G-47 Trooper destroyed. 01469_ TF Node disabled. 01469_ Imp. Sensor Array tumbles out of TF Node. 01469_ Imp. Signal Interpreter tumbles out of TF Node. 01469_ Sml. Storage Unit destroyed. 01469_ Destroyed Sml. Storage Unit. 01469_ Repair Station disabled. 01469_ Backup Laser I tumbles out of repair station. 01469_ Backup Power I tumbles out of repair station. 01474_ Acquired 16 matter. 01476_ Acquired 5 matter. 01481_ Terminal disabled. 01484_ G-47 Trooper destroyed. 01484_ Terminal disabled. 01487_ G-47 Trooper destroyed. 01487_ Sub. Shrapnel Launcher shoots sparks and powers down. Map ----- +----------------------------------------------------+ | ???????????????????????????????????????????? | | ???????????????????????????????????????????? | | ???????????????????????????????????????????? | | ???????????????????????????????????????????? | | ???????????????????????????????????????????? | | ???????????????????????????????????????????? | | ???????????????????????????????????????????? | | ???????????????????????????????????????????? | | ???????????????????????????????????????????? | | ???????????????????????????????????????????? | | ???????????????????????????????????????????? | | ???????????????????????????????????????????? | | ???????????????????????????????????????????? | | ???????????????????????????????????????????? | | ???????????????????????????????????????????? | | ???????????????????????????????????????????? | | ???????????????????????????????????????????? | | ???????????????????????????????????????????? | | ?????????????????????########??????????????? | | ?????????????????????+ """[ #??????????????? | | ?????????????????????# " *[ ###????????????? | | ?????????????????????# "[ [ ; ##???????????? | | ?????????????????????# [ ; #???????????? | | ?????????????????????# !* #??#########? | | ##### # # #???# ;;#### ?? | | # # #??##;; @ # """ ?# | | # # #??# [ # """"" # | | # # ##?# + """"" # | | ########### + ! # """"" # | | ??????????# # # """ # | | ??????????# # " ;##### # | | ??????????# # " #???# # | | ################ "" #???# # | | ## + ;########+##### | | """ ## #w ; #???? | | """ ## # ;# #???? | | """ ## # %[ # """ #???? | | """ ## + % # """ [#???? | | """ ## " # + """ #???? | | ## T ### # "Y" #???? | | ## " #??#??] ; # """ #???? | | ## ######## #??#???? "#### #???? | | ?###??????######??#??????????###########???? | | ??????????????????#????????????????????????? | | ??????????????????#????????????????????????? | | ??????????????????#????????????????????????? | | ??????????????????#????????????????????????? | | ???????????????????????????????????????????? | | ???????????????????????????????????????????? | | | +----------------------------------------------------+ Best States ------------- Heat Dissipation 31 Energy Generation 10 Energy Capacity 250 Matter Stores 300 Matter Capacity 300 Sight Range 16 Terrain Scan Density 10 Evasion (%) 50 Recoil Reduction 2 Item Schematics ----------------- None Robot Schematics ------------------ None Fabricated ------------ Nothing Repaired ---------- Nothing Studied --------- None Alien Tech Used ----------------- None Achievements -------------- None Challenges ------------ None Game ------ Seed MetafieldThrowingTelecube Manual? 0 Play Time 00:11:36 Cumulative 40.1 hours Start 2026.07.21 @ 17:20:54 End 2026.07.21 @ 17:33:43 Sessions 1 Manual Loads 0 Difficulty Rogue Special Mode None Game No. 171 Rogue 171 Adventurer 0 Explorer 0 Win Type - Total 0 Types 0/0/0/0/0/0/0/0/0/0 Lore% 32 Gallery% 27 Achievement% 20 Wizard Run 0 Options --------- Layout 0 ASCII 0 Keyboard 0 Movement Mouse Keybinds 0 Fullscreen 1 Font 18/SmallcapsGlow Map View 38x25 Zoom Use 96% Tactical HUD 1 Map Filters NONE Filters NONE Steam 1 RUN: c8eda89a-0637-41f5-b381-d86a072141fe